[Event "Wuerttemberg Rapid Teams 2024"]
[Site "B?blingen, Germany"]
[Date "2024.04.13"]
[Round "4.5"]
[White "Oberst, Thomas"]
[Black "Peng, Xiang-Tobias"]
[Result "0-1"]
[ECO "B30"]
[WhiteElo "2227"]
[BlackElo "2187"]
[Annotator "RC"]
[PlyCount "92"]
[EventDate "2024.04.13"]
[EventType "team-tourn"]
[SourceTitle "playchess.com"]
[Source "ChessBase"]
[SourceQuality "1"]
[TimeControl "900+5"]

1. e4 {[%emt 0:00:01]} c5 {[%emt 0:00:01]} 2. Nf3 {[%emt 0:00:01]} Nc6 {[%emt 0:00:02]} 3. Bb5 {[%emt 0:00:01]} Na5 {[%emt 0:00:02]} 4. c3 {[%emt 0:00:05]} a6 {[%emt 0:00:03]} 5. Ba4 {[%emt 0:00:01]} b5 {[%emt 0:00:06]} 6. Bc2 {[%emt 0:00:00]} e6 {[%emt 0:01:10]} 7. d4 {[%emt 0:00:06]} Bb7 {[%emt 0:01:31]} 8. dxc5 {[%emt 0:00:01]} Nf6 {[%emt 0:00:31]} 9. e5 {[%emt 0:00:17]} Nd5 {[%emt 0:00:10]} 10. O-O {[%emt 0:00:02]} Be7 {[%emt 0:00:17]} 11. b4 {[%emt 0:00:17]} Nc4 {[%emt 0:00:13]} 12. Bb3 {[%emt 0:00:00]} a5 {[%emt 0:01:45]} 13. Bxc4 {[%emt 0:00:09]} bxc4 {[%emt 0:00:02]} 14. Bd2 {[%emt 0:00:12]} O-O {[%emt 0:00:21]} 15. Qc1 {[%emt 0:00:23]} f6 {[%emt 0:00:04]} 16. Na3 {[%emt 0:00:08]} Qc7 {[%emt 0:00:27]} 17. Nb5 {[%emt 0:00:09]} Qc8 {[%emt 0:00:42]} 18. Nd6 {[%emt 0:00:05]} Bxd6 {[%emt 0:00:02]} 19. exd6 {[%emt 0:00:11]} e5 {[%emt 0:00:07]} 20. Qc2 {[%emt 0:00:33]} Qc6 {[%emt 0:01:51]} 21. Qe4 {[%emt 0:00:24]} axb4 {[%emt 0:00:16]} 22. cxb4 {[%emt 0:00:20]} Qb5 {[%emt 0:00:34]} 23. Rfc1 {[%emt 0:00:44]} c3 {[%emt 0:00:26]} 24. Be3 {[%emt 0:01:19]} Nf4 {[%emt 0:00:02]} 25. Qc2 {[%emt 0:00:35]} Ne2+ {[%emt 0:00:09]} 26. Kh1 {[%emt 0:00:02]} Nxc1 {[%emt 0:00:02]} 27. Rxc1 {[%emt 0:00:01]} Qc4 {[%emt 0:00:28]} 28. Qxc3 {[%emt 0:00:19]} Qxc3 {[%emt 0:00:02]} 29. Rxc3 {[%emt 0:00:02]} Rxa2 {[%emt 0:00:01]} 30. Rb3 {[%emt 0:02:20]} Ra1+ {[%emt 0:00:05]} 31. Ng1 {[%emt 0:00:01]} Rfa8 {[%emt 0:00:09]} 32. h3 {[%emt 0:00:04]} f5 {[%emt 0:00:25]} 33. f4 {[%emt 0:01:28]} R8a2 {[%emt 0:00:24]} 34. b5 {[%emt 0:00:25]} Bxg2+ {[%emt 0:00:31]} 35. Kh2 {[%emt 0:00:04]} Bd5+ {[%emt 0:00:02]} 36. Kg3 {[%emt 0:00:08]} Bxb3 {[%emt 0:00:01]} 37. c6 {[%emt 0:00:02]} dxc6 {[%emt 0:00:09]} 38. d7 {[%emt 0:00:08]} Rd1 {[%emt 0:00:06]} 39. bxc6 {[%emt 0:00:01]} Ba4 {[%emt 0:00:10]} 40. fxe5 {[%emt 0:02:04]} Bxc6 {[%emt 0:00:01]} 41. e6 {[%emt 0:00:00]} Bxd7 {[%emt 0:00:03]} 42. exd7 {[%emt 0:00:03]} Rxd7 {[%emt 0:00:01]} 43. Kf4 {[%emt 0:00:18]} g6 {[%emt 0:00:04]} 44. Nf3 {[%emt 0:00:06]} Ra4+ {[%emt 0:00:07]} 45. Kg3 {[%emt 0:00:16]} Rd3 {[%emt 0:00:05]} 46. Bc5 {[%emt 0:00:12]} Rc4 {[%emt 0:00:13]} 0-1

[Event "Wuerttemberg Rapid Teams 2024"]
[Site "B?blingen, Germany"]
[Date "2024.04.13"]
[Round "4.6"]
[White "Namyslo, Holger"]
[Black "Ramirez Marin, Ivan"]
[Result "0-1"]
[ECO "B30"]
[WhiteElo "2125"]
[BlackElo "2271"]
[Annotator "RC"]
[PlyCount "70"]
[EventDate "2024.04.13"]
[EventType "team-tourn"]
[SourceTitle "playchess.com"]
[Source "ChessBase"]
[SourceQuality "1"]
[TimeControl "900+5"]

1. e4 {[%emt 0:00:02]} c5 {[%emt 0:00:00]} 2. Nf3 {[%emt 0:00:02]} Nc6 {[%emt 0:00:01]} 3. b4 {[%emt 0:00:01]} cxb4 {[%emt 0:00:06]} 4. d4 {[%emt 0:00:02]} d5 {[%emt 0:00:07]} 5. exd5 {[%emt 0:00:02]} Qxd5 {[%emt 0:00:02]} 6. c4 {[%emt 0:00:01]} bxc3 {[%emt 0:00:48]} 7. Nxc3 {[%emt 0:00:02]} Qa5 {[%emt 0:00:02]} 8. d5 {[%emt 0:00:01]} e6 {[%emt 0:00:56]} 9. Qd2 {[%emt 0:00:02]} Bb4 {[%emt 0:00:14]} 10. Bb2 {[%emt 0:00:00]} Nf6 {[%emt 0:00:44]} 11. dxc6 {[%emt 0:02:37]} Ne4 {[%emt 0:00:09]} 12. Nxe4 {[%emt 0:01:07]} Bxd2+ {[%emt 0:00:02]} 13. Nexd2 {[%emt 0:00:23]} bxc6 {[%emt 0:02:17]} 14. Bc4 {[%emt 0:01:27]} Rb8 {[%emt 0:00:21]} 15. Be5 {[%emt 0:00:43]} Rb7 {[%emt 0:01:23]} 16. O-O {[%emt 0:00:16]} f6 {[%emt 0:00:03]} 17. Bg3 {[%emt 0:01:07]} Ke7 {[%emt 0:01:17]} 18. Rfe1 {[%emt 0:00:18]} Rd8 {[%emt 0:00:08]} 19. Nb3 {[%emt 0:00:57]} Qb6 {[%emt 0:01:28]} 20. h4 {[%emt 0:02:04]} h5 {[%emt 0:00:22]} 21. Rab1 {[%emt 0:00:44]} Kf8 {[%emt 0:02:59]} 22. Bxe6 {[%emt 0:00:30]} c5 {[%emt 0:00:29]} 23. Bxc8 {[%emt 0:00:22]} Rxc8 {[%emt 0:00:03]} 24. Nbd2 {[%emt 0:00:41]} Qa6 {[%emt 0:00:20]} 25. Bd6+ {[%emt 0:01:01]} Kg8 {[%emt 0:00:21]} 26. Rxb7 {[%emt 0:00:01]} Qxb7 {[%emt 0:00:02]} 27. Nc4 {[%emt 0:00:14]} Qa6 {[%emt 0:00:02]} 28. Nfd2 {[%emt 0:00:08]} Qxa2 {[%emt 0:00:19]} 29. Re7 {[%emt 0:00:42]} a5 {[%emt 0:00:19]} 30. Ra7 {[%emt 0:00:14]} a4 {[%emt 0:00:09]} 31. Bf4 {[%emt 0:00:01]} Qc2 {[%emt 0:00:34]} 32. Nd6 {[%emt 0:00:21]} Rb8 {[%emt 0:00:29]} 33. N2c4 {[%emt 0:00:19]} Rb4 {[%emt 0:00:13]} 34. Ne8 {[%emt 0:00:59]} Qxc4 {[%emt 0:00:32]} 35. Bd6 {[%emt 0:00:19]} Rb1+ {[%emt 0:00:04]} 0-1

[Event "Wuerttemberg Rapid Teams 2024"]
[Site "B?blingen, Germany"]
[Date "2024.04.13"]
[Round "4.7"]
[White "Schulze, Andreas"]
[Black "Schnepp, Gunnar"]
[Result "1-0"]
[ECO "D85"]
[WhiteElo "2080"]
[BlackElo "2233"]
[Annotator "RC"]
[PlyCount "77"]
[EventDate "2024.04.13"]
[EventType "team-tourn"]
[SourceTitle "playchess.com"]
[Source "ChessBase"]
[SourceQuality "1"]
[TimeControl "900+5"]

1. d4 {[%emt 0:00:02]} Nf6 {[%emt 0:00:15]} 2. c4 {[%emt 0:00:02]} g6 {[%emt 0:00:03]} 3. Nc3 {[%emt 0:00:02]} d5 {[%emt 0:00:01]} 4. cxd5 {[%emt 0:00:02]} Nxd5 {[%emt 0:00:02]} 5. e4 {[%emt 0:00:01]} Nxc3 {[%emt 0:00:01]} 6. bxc3 {[%emt 0:00:02]} Bg7 {[%emt 0:00:02]} 7. Nf3 {[%emt 0:00:02]} O-O {[%emt 0:00:25]} 8. Be3 {[%emt 0:01:32]} c5 {[%emt 0:00:44]} 9. Be2 {[%emt 0:01:31]} cxd4 {[%emt 0:00:14]} 10. cxd4 {[%emt 0:00:03]} b6 {[%emt 0:00:38]} 11. O-O {[%emt 0:01:17]} Bb7 {[%emt 0:00:06]} 12. Qb1 {[%emt 0:02:11]} Nd7 {[%emt 0:01:32]} 13. a4 {[%emt 0:00:23]} Nf6 {[%emt 0:00:17]} 14. Nd2 {[%emt 0:00:22]} Bc6 {[%emt 0:02:01]} 15. d5 {[%emt 0:00:38]} Bd7 {[%emt 0:00:13]} 16. h3 {[%emt 0:02:02]} Ne8 {[%emt 0:00:57]} 17. Ra2 {[%emt 0:00:36]} e6 {[%emt 0:00:23]} 18. a5 {[%emt 0:01:08]} exd5 {[%emt 0:00:55]} 19. axb6 {[%emt 0:00:15]} axb6 {[%emt 0:00:32]} 20. Bxb6 {[%emt 0:00:09]} Qb8 {[%emt 0:00:06]} 21. Rxa8 {[%emt 0:00:17]} Qxa8 {[%emt 0:00:01]} 22. Bc5 {[%emt 0:00:19]} Nf6 {[%emt 0:00:27]} 23. Bxf8 {[%emt 0:00:11]} Qxf8 {[%emt 0:00:01]} 24. e5 {[%emt 0:00:19]} Ne8 {[%emt 0:00:06]} 25. Qb7 {[%emt 0:00:30]} Be6 {[%emt 0:00:18]} 26. Nf3 {[%emt 0:00:14]} Qa3 {[%emt 0:00:56]} 27. Qb8 {[%emt 0:01:24]} Bd7 {[%emt 0:00:11]} 28. Qd8 {[%emt 0:00:15]} Qa4 {[%emt 0:00:30]} 29. Rb1 {[%emt 0:00:12]} Bf8 {[%emt 0:00:16]} 30. Rb7 {[%emt 0:00:29]} Bc6 {[%emt 0:00:02]} 31. Rb8 {[%emt 0:00:14]} Qa3 {[%emt 0:01:16]} 32. Qc8 {[%emt 0:00:16]} Ba4 {[%emt 0:00:41]} 33. e6 {[%emt 0:00:09]} Qe7 {[%emt 0:01:39]} 34. Ra8 {[%emt 0:00:11]} Nd6 {[%emt 0:00:23]} 35. Qb8 {[%emt 0:00:12]} Bc6 {[%emt 0:00:32]} 36. Ra6 {[%emt 0:00:10]} Qxe6 {[%emt 0:00:03]} 37. Nd4 {[%emt 0:00:04]} Qe5 {[%emt 0:00:16]} 38. Nxc6 {[%emt 0:00:12]} Qxe2 {[%emt 0:00:02]} 39. Ra8 {[%emt 0:01:13]} 1-0

[Event "Wuerttemberg Rapid Teams 2024"]
[Site "B?blingen, Germany"]
[Date "2024.04.13"]
[Round "4.8"]
[White "Birkenmaier, Rainer"]
[Black "Geshnizjani, Ramin"]
[Result "1-0"]
[ECO "D03"]
[WhiteElo "2111"]
[BlackElo "2137"]
[Annotator "RC"]
[PlyCount "55"]
[EventDate "2024.04.13"]
[EventType "team-tourn"]
[SourceTitle "playchess.com"]
[Source "ChessBase"]
[SourceQuality "1"]
[TimeControl "900+5"]

1. d4 {[%emt 0:00:02]} d5 {[%emt 0:00:01]} 2. Nf3 {[%emt 0:00:03]} Nf6 {[%emt 0:00:02]} 3. c3 {[%emt 0:00:02]} e6 {[%emt 0:00:10]} 4. Bg5 {[%emt 0:00:03]} Be7 {[%emt 0:00:03]} 5. Nbd2 {[%emt 0:00:01]} Nbd7 {[%emt 0:00:23]} 6. e3 {[%emt 0:00:04]} O-O {[%emt 0:00:16]} 7. Bd3 {[%emt 0:00:03]} c5 {[%emt 0:00:05]} 8. O-O {[%emt 0:00:04]} Qc7 {[%emt 0:00:13]} 9. Qe2 {[%emt 0:00:09]} e5 {[%emt 0:00:10]} 10. dxe5 {[%emt 0:00:05]} Nxe5 {[%emt 0:00:03]} 11. Nxe5 {[%emt 0:00:02]} Qxe5 {[%emt 0:00:03]} 12. Nf3 {[%emt 0:00:13]} Qe6 {[%emt 0:00:53]} 13. h3 {[%emt 0:00:24]} Bd7 {[%emt 0:00:19]} 14. Rfe1 {[%emt 0:00:11]} Bc6 {[%emt 0:00:31]} 15. Rad1 {[%emt 0:00:50]} Rad8 {[%emt 0:00:34]} 16. Qc2 {[%emt 0:01:08]} h6 {[%emt 0:00:12]} 17. Bf5 {[%emt 0:00:14]} hxg5 {[%emt 0:02:51]} 18. Bxe6 {[%emt 0:00:03]} fxe6 {[%emt 0:00:02]} 19. Nxg5 {[%emt 0:00:06]} Rd6 {[%emt 0:00:13]} 20. f4 {[%emt 0:01:17]} Ne4 {[%emt 0:01:03]} 21. Nxe4 {[%emt 0:00:54]} dxe4 {[%emt 0:00:00]} 22. Rxd6 {[%emt 0:00:22]} Bxd6 {[%emt 0:00:01]} 23. Rd1 {[%emt 0:00:17]} Bc7 {[%emt 0:00:27]} 24. g4 {[%emt 0:00:14]} g5 {[%emt 0:00:11]} 25. f5 {[%emt 0:01:30]} exf5 {[%emt 0:00:08]} 26. gxf5 {[%emt 0:00:02]} Rxf5 {[%emt 0:00:07]} 27. Rf1 {[%emt 0:00:06]} Rd5 {[%emt 0:02:02]} 28. Qf2 {[%emt 0:00:48]} 1-0

[Event "Wuerttemberg Rapid Teams 2024"]
[Site "B?blingen, Germany"]
[Date "2024.04.13"]
[Round "4.9"]
[White "Kuklin, Valentin"]
[Black "Kottke, Markus"]
[Result "0-1"]
[ECO "B26"]
[WhiteElo "2367"]
[BlackElo "2218"]
[Annotator "RC"]
[PlyCount "68"]
[EventDate "2024.04.13"]
[EventType "team-tourn"]
[SourceTitle "playchess.com"]
[Source "ChessBase"]
[SourceQuality "1"]
[TimeControl "900+5"]

1. e4 {[%emt 0:00:03]} c5 {[%emt 0:00:01]} 2. Nc3 {[%emt 0:00:04]} Nc6 {[%emt 0:00:14]} 3. g3 {[%emt 0:00:04]} g6 {[%emt 0:00:04]} 4. Bg2 {[%emt 0:00:02]} Bg7 {[%emt 0:00:01]} 5. d3 {[%emt 0:00:06]} d6 {[%emt 0:00:09]} 6. Be3 {[%emt 0:00:11]} e6 {[%emt 0:00:03]} 7. Qd2 {[%emt 0:00:04]} Rb8 {[%emt 0:00:10]} 8. Nge2 {[%emt 0:00:04]} b5 {[%emt 0:00:07]} 9. O-O {[%emt 0:00:15]} Nd4 {[%emt 0:00:13]} 10. Nd1 {[%emt 0:00:31]} Ne7 {[%emt 0:00:25]} 11. Nc1 {[%emt 0:00:11]} O-O {[%emt 0:00:13]} 12. c3 {[%emt 0:00:06]} Ndc6 {[%emt 0:00:04]} 13. d4 {[%emt 0:00:48]} cxd4 {[%emt 0:00:25]} 14. cxd4 {[%emt 0:00:02]} b4 {[%emt 0:00:33]} 15. d5 {[%emt 0:00:38]} exd5 {[%emt 0:00:20]} 16. exd5 {[%emt 0:00:02]} Ne5 {[%emt 0:00:01]} 17. Bxa7 {[%emt 0:00:30]} Rb5 {[%emt 0:00:30]} 18. Ne3 {[%emt 0:01:31]} Bh3 {[%emt 0:01:17]} 19. Ne2 {[%emt 0:06:03]} Bxg2 {[%emt 0:00:32]} 20. Kxg2 {[%emt 0:00:36]} Qa8 {[%emt 0:00:34]} 21. Bd4 {[%emt 0:00:00]} Nxd5 {[%emt 0:00:02]} 22. f3 {[%emt 0:00:00]} Re8 {[%emt 0:00:47]} 23. a4 {[%emt 0:00:27]} Nxe3+ {[%emt 0:00:33]} 24. Qxe3 {[%emt 0:00:43]} Nxf3 {[%emt 0:00:54]} 25. axb5 {[%emt 0:01:08]} Nh4+ {[%emt 0:01:41]} 26. Kf2 {[%emt 0:00:50]} Qg2+ {[%emt 0:00:06]} 27. Ke1 {[%emt 0:00:05]} Rxe3 {[%emt 0:00:06]} 28. Bxe3 {[%emt 0:00:25]} Nf3+ {[%emt 0:00:01]} 29. Rxf3 {[%emt 0:00:09]} Qxf3 {[%emt 0:00:01]} 30. b6 {[%emt 0:00:45]} Bxb2 {[%emt 0:00:12]} 31. Ra7 {[%emt 0:00:09]} Qxe3 {[%emt 0:00:11]} 32. Ra8+ {[%emt 0:00:08]} Kg7 {[%emt 0:00:00]} 33. b7 {[%emt 0:00:01]} Bc3+ {[%emt 0:00:01]} 34. Kd1 {[%emt 0:00:01]} Qd2# {[%emt 0:00:01]} 0-1

[Event "Wuerttemberg Rapid Teams 2024"]
[Site "B?blingen, Germany"]
[Date "2024.04.13"]
[Round "4.10"]
[White "Hofer, Markus"]
[Black "Vujic, Branimir"]
[Result "0-1"]
[ECO "D60"]
[WhiteElo "2047"]
[BlackElo "2218"]
[Annotator "RC"]
[PlyCount "104"]
[EventDate "2024.04.13"]
[EventType "team-tourn"]
[SourceTitle "playchess.com"]
[Source "ChessBase"]
[SourceQuality "1"]
[TimeControl "900+5"]

1. d4 {[%emt 0:00:04]} d5 {[%emt 0:00:35]} 2. c4 {[%emt 0:00:00]} e6 {[%emt 0:00:02]} 3. Nc3 {[%emt 0:00:00]} Nf6 {[%emt 0:00:02]} 4. Bg5 {[%emt 0:00:01]} Be7 {[%emt 0:00:02]} 5. e3 {[%emt 0:00:01]} O-O {[%emt 0:00:03]} 6. Nf3 {[%emt 0:00:00]} Nbd7 {[%emt 0:00:01]} 7. Bd3 {[%emt 0:00:35]} dxc4 {[%emt 0:00:03]} 8. Bxc4 {[%emt 0:00:02]} a6 {[%emt 0:00:01]} 9. a4 {[%emt 0:00:00]} c5 {[%emt 0:00:01]} 10. O-O {[%emt 0:00:07]} h6 {[%emt 0:00:01]} 11. Bh4 {[%emt 0:00:03]} cxd4 {[%emt 0:00:06]} 12. exd4 {[%emt 0:00:17]} Nb6 {[%emt 0:00:02]} 13. Bb3 {[%emt 0:00:34]} Nbd5 {[%emt 0:00:04]} 14. Re1 {[%emt 0:00:30]} b6 {[%emt 0:00:31]} 15. Nxd5 {[%emt 0:00:13]} exd5 {[%emt 0:00:04]} 16. Ne5 {[%emt 0:01:53]} Bb7 {[%emt 0:00:17]} 17. Rc1 {[%emt 0:00:30]} Qd6 {[%emt 0:00:57]} 18. Re3 {[%emt 0:01:24]} Rac8 {[%emt 0:00:19]} 19. Rec3 {[%emt 0:01:06]} Rxc3 {[%emt 0:00:21]} 20. Rxc3 {[%emt 0:00:01]} Rc8 {[%emt 0:00:34]} 21. Rxc8+ {[%emt 0:01:19]} Bxc8 {[%emt 0:00:02]} 22. Qc2 {[%emt 0:00:03]} Be6 {[%emt 0:00:08]} 23. Nc6 {[%emt 0:00:32]} Bf8 {[%emt 0:00:42]} 24. Bg3 {[%emt 0:00:34]} Qd7 {[%emt 0:00:16]} 25. Nb8 {[%emt 0:01:58]} Qe8 {[%emt 0:03:42]} 26. f3 {[%emt 0:01:27]} a5 {[%emt 0:01:52]} 27. Kf2 {[%emt 0:00:15]} Nd7 {[%emt 0:00:26]} 28. Qc6 {[%emt 0:00:21]} Qe7 {[%emt 0:00:18]} 29. Nxd7 {[%emt 0:00:07]} Bxd7 {[%emt 0:00:01]} 30. Qxb6 {[%emt 0:00:04]} Qg5 {[%emt 0:00:57]} 31. Qxa5 {[%emt 0:00:08]} Qc1 {[%emt 0:00:05]} 32. Qc3 {[%emt 0:00:07]} Qa1 {[%emt 0:00:07]} 33. Bxd5 {[%emt 0:01:26]} Qxa4 {[%emt 0:00:08]} 34. Bb3 {[%emt 0:00:21]} Qa1 {[%emt 0:00:15]} 35. Bc4 {[%emt 0:00:28]} Bf5 {[%emt 0:00:22]} 36. Be5 {[%emt 0:00:14]} Bg6 {[%emt 0:00:01]} 37. d5 {[%emt 0:00:10]} Qa7+ {[%emt 0:01:50]} 38. Bd4 {[%emt 0:00:07]} Qc7 {[%emt 0:00:01]} 39. g3 {[%emt 0:00:17]} h5 {[%emt 0:00:01]} 40. Kg2 {[%emt 0:00:17]} h4 {[%emt 0:00:12]} 41. Be5 {[%emt 0:00:05]} Qd7 {[%emt 0:00:16]} 42. g4 {[%emt 0:00:13]} Qb7 {[%emt 0:00:20]} 43. h3 {[%emt 0:00:06]} Qb6 {[%emt 0:00:19]} 44. Bd4 {[%emt 0:00:02]} Qb8 {[%emt 0:00:21]} 45. Be5 {[%emt 0:00:08]} Qb6 {[%emt 0:00:01]} 46. Qd4 {[%emt 0:00:09]} Bc5 {[%emt 0:00:02]} 47. Qd2 {[%emt 0:00:17]} Be3 {[%emt 0:00:27]} 48. Qe2 {[%emt 0:00:09]} Qc5 {[%emt 0:00:22]} 49. b4 {[%emt 0:00:01]} Qxb4 {[%emt 0:00:20]} 50. d6 {[%emt 0:00:13]} Bb6 {[%emt 0:00:35]} 51. d7 {[%emt 0:00:14]} Qc5 {[%emt 0:00:01]} 52. Bb5 {[%emt 0:00:01]} Qg1# {[%emt 0:00:00]} 0-1

[Event "Wuerttemberg Rapid Teams 2024"]
[Site "B?blingen, Germany"]
[Date "2024.04.13"]
[Round "4.12"]
[White "Brettschneider, Karl"]
[Black "Schuh, Bernd-Martin"]
[Result "1/2-1/2"]
[ECO "A34"]
[WhiteElo "1965"]
[BlackElo "1976"]
[Annotator "NA RC"]
[PlyCount "129"]
[EventDate "2024.04.13"]
[EventType "team-tourn"]
[SourceTitle "playchess.com"]
[Source "ChessBase"]
[SourceQuality "1"]
[TimeControl "900+5"]

1. c4 {[%emt 0:00:02]} c5 {[%emt 0:00:02]} 2. Nc3 {[%emt 0:00:02]} Nf6 {[%emt 0:00:02]} 3. g3 {[%emt 0:00:02]} d5 {[%emt 0:00:02]} 4. cxd5 {[%emt 0:00:03]} Nxd5 {[%emt 0:00:02]} 5. Bg2 {[%emt 0:00:03]} Nc7 {[%emt 0:00:03]} 6. Nf3 {[%emt 0:00:08]} Nc6 {[%emt 0:00:02]} 7. O-O {[%emt 0:00:07]} e5 {[%emt 0:00:03]} 8. d3 {[%emt 0:00:19]} Be7 {[%emt 0:00:13]} 9. Be3 {[%emt 0:00:50]} Ne6 {[%emt 0:01:15]} 10. Rc1 {[%emt 0:01:24]} Bd7 {[%emt 0:00:11]} 11. Nd5 {[%emt 0:00:45]} Rc8 {[%emt 0:01:17]} 12. Nxe7 {[%emt 0:01:26]} Qxe7 {[%emt 0:00:06]} 13. Qd2 {[%emt 0:00:24]} O-O {[%emt 0:00:09]} 14. Ng5 {[%emt 0:00:12]} b6 {[%emt 0:00:56]} 15. Nxe6 {[%emt 0:01:14]} Bxe6 {[%emt 0:01:36]} 16. b3 {[%emt 0:00:02]} Nd4 {[%emt 0:00:56]} 17. f4 {[%emt 0:00:46]} Bg4 {[%emt 0:00:35]} 18. Bxd4 {[%emt 0:01:12]} exd4 {[%emt 0:00:08]} 19. Bf3 {[%emt 0:00:26]} Bxf3 {[%emt 0:00:27]} 20. Rxf3 {[%emt 0:00:08]} Rfe8 {[%emt 0:00:04]} 21. Re1 {[%emt 0:00:12]} Qd6 {[%emt 0:00:43]} 22. e4 {[%emt 0:00:58]} dxe3 {[%emt 0:00:04]} 23. Rfxe3 {[%emt 0:00:03]} Qd4 {[%emt 0:00:35]} 24. Kg2 {[%emt 0:00:53]} Kf8 {[%emt 0:01:03]} 25. Kf3 {[%emt 0:00:11]} Rxe3+ {[%emt 0:00:22]} 26. Qxe3 {[%emt 0:00:35]} Qxe3+ {[%emt 0:00:14]} 27. Rxe3 {[%emt 0:00:13]} Rd8 {[%emt 0:00:33]} 28. Ke2 {[%emt 0:00:07]} g6 {[%emt 0:00:19]} 29. Kd2 {[%emt 0:00:04]} Rd7 {[%emt 0:00:40]} 30. Kc3 {[%emt 0:00:04]} Rd4 {[%emt 0:01:08]} 31. Re4 {[%emt 0:00:09]} Rxe4 {[%emt 0:00:24]} 32. dxe4 {[%emt 0:00:02]} b5 {[%emt 0:00:07]} 33. h4 {[%emt 0:00:36]} Ke7 {[%emt 0:00:21]} 34. a3 {[%emt 0:00:13]} Ke6 {[%emt 0:00:14]} 35. Kd3 {[%emt 0:00:09]} h6 {[%emt 0:00:21]} 36. g4 {[%emt 0:00:31]} f6 {[%emt 0:00:32]} 37. Kc3 {[%emt 0:00:17]} g5 {[%emt 0:00:13]} 38. hxg5 {[%emt 0:00:48]} hxg5 {[%emt 0:00:04]} 39. fxg5 {[%emt 0:00:30]} fxg5 {[%emt 0:00:01]} 40. Kd3 {[%emt 0:00:03]} Ke5 {[%emt 0:00:04]} 41. a4 {[%emt 0:00:24]} a6 {[%emt 0:00:01]} 42. Ke3 {[%emt 0:00:20]} c4 {[%emt 0:00:11]} 43. bxc4 {[%emt 0:00:48]} bxc4 {[%emt 0:00:18]} 44. a5 {[%emt 0:00:06]} c3 {[%emt 0:00:03]} 45. Kd3 {[%emt 0:00:01]} c2 {[%emt 0:00:07]} 46. Kxc2 {[%emt 0:00:01]} Kxe4 {[%emt 0:00:02]} 47. Kc3 {[%emt 0:00:08]} Kf4 {[%emt 0:00:01]} 48. Kc4 {[%emt 0:00:01]} Kxg4 {[%emt 0:00:01]} 49. Kc5 {[%emt 0:00:01]} Kf4 {[%emt 0:00:05]} 50. Kb6 {[%emt 0:00:01]} g4 {[%emt 0:00:02]} 51. Kxa6 {[%emt 0:00:02]} g3 {[%emt 0:00:01]} 52. Kb7 {[%emt 0:00:10]} g2 {[%emt 0:00:02]} 53. a6 {[%emt 0:00:01]} g1=Q {[%emt 0:00:03]} 54. a7 {[%emt 0:00:01]} Qb1+ {[%emt 0:00:06]} 55. Kc7 {[%emt 0:00:01]} Qc2+ {[%emt 0:00:02]} 56. Kb7 {[%emt 0:00:01]} Qb3+ {[%emt 0:00:01]} 57. Kc6 {[%emt 0:00:16]} Qa4+ {[%emt 0:00:03]} 58. Kb7 {[%emt 0:00:01]} Qb5+ {[%emt 0:00:01]} 59. Kc7 {[%emt 0:00:02]} Qa6 {[%emt 0:00:01]} 60. Kb8 {[%emt 0:00:01]} Qb6+ {[%emt 0:00:01]} 61. Ka8 {[%emt 0:00:03]} Qd8+ {[%emt 0:00:06]} 62. Kb7 {[%emt 0:00:01]} Qd7+ {[%emt 0:00:01]} 63. Kb8 {[%emt 0:00:01]} Ke5 {[%emt 0:00:08]} 64. a8=Q {[%emt 0:00:05]} Kd6 {[%emt 0:00:02]} 65. Qa6+ {[%emt 0:00:06]} 1/2-1/2

[Event "Wuerttemberg Rapid Teams 2024"]
[Site "B?blingen, Germany"]
[Date "2024.04.13"]
[Round "4.13"]
[White "Fischer, Andre"]
[Black "Seitz, Patrick"]
[Result "1-0"]
[ECO "B81"]
[WhiteElo "2248"]
[BlackElo "2125"]
[Annotator "RC"]
[PlyCount "83"]
[EventDate "2024.04.13"]
[EventType "team-tourn"]
[SourceTitle "playchess.com"]
[Source "ChessBase"]
[SourceQuality "1"]
[TimeControl "900+5"]

1. e4 {[%emt 0:00:02]} c5 {[%emt 0:00:02]} 2. Nf3 {[%emt 0:00:02]} d6 {[%emt 0:00:01]} 3. d4 {[%emt 0:00:01]} cxd4 {[%emt 0:00:01]} 4. Nxd4 {[%emt 0:00:01]} Nf6 {[%emt 0:00:01]} 5. Nc3 {[%emt 0:00:01]} a6 {[%emt 0:00:01]} 6. Be3 {[%emt 0:00:05]} e6 {[%emt 0:00:03]} 7. g4 {[%emt 0:00:11]} h6 {[%emt 0:00:35]} 8. Rg1 {[%emt 0:00:05]} Nc6 {[%emt 0:00:42]} 9. Be2 {[%emt 0:00:01]} Nxd4 {[%emt 0:01:35]} 10. Bxd4 {[%emt 0:00:02]} Be7 {[%emt 0:00:02]} 11. Be3 {[%emt 0:00:36]} Qa5 {[%emt 0:00:36]} 12. Qd2 {[%emt 0:00:09]} g5 {[%emt 0:00:15]} 13. O-O-O {[%emt 0:00:23]} Nd7 {[%emt 0:01:06]} 14. f4 {[%emt 0:01:20]} Rg8 {[%emt 0:00:37]} 15. Kb1 {[%emt 0:00:50]} b5 {[%emt 0:01:19]} 16. a3 {[%emt 0:02:51]} Bb7 {[%emt 0:02:51]} 17. Rgf1 {[%emt 0:00:55]} Rc8 {[%emt 0:00:29]} 18. h4 {[%emt 0:03:21]} b4 {[%emt 0:02:13]} 19. axb4 {[%emt 0:00:43]} Qxb4 {[%emt 0:00:05]} 20. fxg5 {[%emt 0:00:12]} hxg5 {[%emt 0:00:06]} 21. Bxg5 {[%emt 0:00:21]} Bxg5 {[%emt 0:00:33]} 22. hxg5 {[%emt 0:00:01]} Rc6 {[%emt 0:01:08]} 23. Rf3 {[%emt 0:02:59]} Ne5 {[%emt 0:00:03]} 24. Rh3 {[%emt 0:00:01]} Rb6 {[%emt 0:00:08]} 25. b3 {[%emt 0:00:01]} Bxe4 {[%emt 0:00:24]} 26. Kb2 {[%emt 0:00:44]} d5 {[%emt 0:00:43]} 27. Qe3 {[%emt 0:00:52]} Rc6 {[%emt 0:01:33]} 28. Rd4 {[%emt 0:00:23]} Qb8 {[%emt 0:00:06]} 29. Nxe4 {[%emt 0:00:01]} dxe4 {[%emt 0:00:01]} 30. Qxe4 {[%emt 0:00:01]} Rb6 {[%emt 0:00:06]} 31. Ra4 {[%emt 0:00:11]} Nd7 {[%emt 0:00:07]} 32. Qh7 {[%emt 0:00:08]} Qe5+ {[%emt 0:00:03]} 33. Ka2 {[%emt 0:00:06]} Qxg5 {[%emt 0:00:04]} 34. Bd3 {[%emt 0:00:06]} Qg7 {[%emt 0:00:02]} 35. Qh5 {[%emt 0:00:02]} Nf6 {[%emt 0:00:02]} 36. Qc5 {[%emt 0:00:01]} Nd7 {[%emt 0:00:04]} 37. Qc7 {[%emt 0:00:02]} Qe5 {[%emt 0:00:02]} 38. Qc8+ {[%emt 0:00:03]} Ke7 {[%emt 0:00:02]} 39. Qxg8 {[%emt 0:00:01]} Nc5 {[%emt 0:00:05]} 40. Rh5 {[%emt 0:00:01]} Qc3 {[%emt 0:00:06]} 41. Qg5+ {[%emt 0:00:02]} Kd7 {[%emt 0:00:02]} 42. Qxc5 {[%emt 0:00:01]} 1-0